[Event "Early-Titled-Tuesday-Blitz-September-12-2023"]
[Site "Chess.com"]
[Date "2023.09.12"]
[Round "5"]
[White "Boxerandchessplayer"]
[Black "RamonManon0g"]
[Result "0-1"]
[WhiteElo "2102"]
[BlackElo "2306"]
[TimeControl "180+1"]
[EndTime "8:54:18 PDT"]
[Termination "RamonManon0g won on time"]

1. d4 {[%clk 0:03:00.9]} 1... Nf6 {[%clk 0:02:59.7]} 2. Nf3 {[%clk 0:02:59]}
2... g6 {[%clk 0:03:00.6]} 3. Nbd2 {[%clk 0:02:58.1]} 3... d5 {[%clk 0:03:00.5]}
4. e3 {[%clk 0:02:57.7]} 4... Bg7 {[%clk 0:03:01.1]} 5. b4 {[%clk 0:02:57.2]}
5... O-O {[%clk 0:03:01]} 6. a4 {[%clk 0:02:56.5]} 6... c6 {[%clk 0:03:01.6]} 7.
c4 {[%clk 0:02:55.6]} 7... Nbd7 {[%clk 0:03:01.6]} 8. Be2 {[%clk 0:02:46.9]}
8... Re8 {[%clk 0:02:59.7]} 9. Bb2 {[%clk 0:02:45.7]} 9... e5 {[%clk 0:02:57]}
10. O-O {[%clk 0:02:46.4]} 10... exd4 {[%clk 0:02:54.7]} 11. Bxd4 {[%clk
0:02:44.3]} 11... Nf8 {[%clk 0:02:39.6]} 12. Qb3 {[%clk 0:02:34.6]} 12... Ne6
{[%clk 0:02:37]} 13. Bb2 {[%clk 0:02:33.2]} 13... h6 {[%clk 0:02:09]} 14. Rfd1
{[%clk 0:02:29.1]} 14... Qe7 {[%clk 0:02:06.7]} 15. Rac1 {[%clk 0:02:20.6]}
15... Ng5 {[%clk 0:02:03.8]} 16. Nxg5 {[%clk 0:02:09]} 16... hxg5 {[%clk
0:02:04.7]} 17. cxd5 {[%clk 0:01:55]} 17... Nxd5 {[%clk 0:02:02.3]} 18. Bxg7
{[%clk 0:01:52.1]} 18... Kxg7 {[%clk 0:02:03.2]} 19. b5 {[%clk 0:01:51]} 19...
Bd7 {[%clk 0:01:46.4]} 20. bxc6 {[%clk 0:01:34.9]} 20... Bxc6 {[%clk 0:01:47.3]}
21. Bf3 {[%clk 0:01:34.1]} 21... Rad8 {[%clk 0:01:40.1]} 22. Rb1 {[%clk
0:00:43.9]} 22... Qe5 {[%clk 0:01:34.4]} 23. Nc4 {[%clk 0:00:38.3]} 23... Qc3
{[%clk 0:01:29.2]} 24. Bxd5 {[%clk 0:00:25]} 24... Qxb3 {[%clk 0:01:24.9]} 25.
Rxb3 {[%clk 0:00:25.9]} 25... Bxd5 {[%clk 0:01:25.3]} 26. Rbd3 {[%clk
0:00:25.4]} 26... Bxc4 {[%clk 0:01:15.6]} 27. Rxd8 {[%clk 0:00:08.2]} 27... Re5
{[%clk 0:00:58.6]} 28. R8d4 {[%clk 0:00:07.7]} 28... Ba6 {[%clk 0:00:54.7]} 29.
h3 {[%clk 0:00:05.8]} 29... Rc5 {[%clk 0:00:53.7]} 30. Rb4 {[%clk 0:00:04.9]}
30... Rc2 {[%clk 0:00:51.4]} 31. Rdd4 {[%clk 0:00:03]} 31... Rc1+ {[%clk
0:00:50.7]} 0-1

[Event "Early-Titled-Tuesday-Blitz-September-12-2023"]
[Site "Chess.com"]
[Date "2023.09.12"]
[Round "5"]
[White "MathiasWomacka"]
[Black "wqws"]
[Result "0-1"]
[WhiteElo "2480"]
[BlackElo "2689"]
[TimeControl "180+1"]
[EndTime "8:54:19 PDT"]
[Termination "wqws won by checkmate"]

1. e4 {[%clk 0:02:59.3]} 1... c5 {[%clk 0:02:59.2]} 2. Nf3 {[%clk 0:02:58.7]}
2... d6 {[%clk 0:02:59]} 3. d4 {[%clk 0:02:59.1]} 3... cxd4 {[%clk 0:02:57.3]}
4. Nxd4 {[%clk 0:03:00]} 4... Nf6 {[%clk 0:01:14.4]} 5. Nc3 {[%clk 0:02:59]}
5... a6 {[%clk 0:01:14.4]} 6. Be2 {[%clk 0:02:58]} 6... e5 {[%clk 0:01:14.8]} 7.
Nb3 {[%clk 0:02:57]} 7... Be7 {[%clk 0:01:14.8]} 8. O-O {[%clk 0:02:55.5]} 8...
O-O {[%clk 0:00:42]} 9. Kh1 {[%clk 0:02:55.3]} 9... Nbd7 {[%clk 0:00:41.9]} 10.
a4 {[%clk 0:02:51.9]} 10... b6 {[%clk 0:00:41.9]} 11. Be3 {[%clk 0:02:44.8]}
11... Bb7 {[%clk 0:00:37.5]} 12. f3 {[%clk 0:02:44.6]} 12... Nc5 {[%clk
0:00:37.3]} 13. Bc4 {[%clk 0:02:30.6]} 13... Rc8 {[%clk 0:00:36.8]} 14. Qe2
{[%clk 0:02:30.5]} 14... Qc7 {[%clk 0:00:36.2]} 15. Nxc5 {[%clk 0:02:28.2]}
15... dxc5 {[%clk 0:00:36.4]} 16. Bxa6 {[%clk 0:02:28.8]} 16... Bc6 {[%clk
0:00:35.8]} 17. Bc4 {[%clk 0:02:24]} 17... Nh5 {[%clk 0:00:35.4]} 18. g3 {[%clk
0:02:15.8]} 18... Kh8 {[%clk 0:00:34.6]} 19. Nd5 {[%clk 0:02:11.5]} 19... Bxd5
{[%clk 0:00:33.6]} 20. Bxd5 {[%clk 0:02:12.4]} 20... g6 {[%clk 0:00:33.7]} 21.
Rad1 {[%clk 0:02:02.4]} 21... f5 {[%clk 0:00:33.7]} 22. exf5 {[%clk 0:01:57.6]}
22... gxf5 {[%clk 0:00:33.9]} 23. f4 {[%clk 0:01:57.6]} 23... Nf6 {[%clk
0:00:33.6]} 24. Be6 {[%clk 0:01:54.1]} 24... Qc6+ {[%clk 0:00:31.2]} 25. Kg1
{[%clk 0:01:36]} 25... Qxe6 {[%clk 0:00:31.4]} 26. fxe5 {[%clk 0:01:35.6]} 26...
Ne4 {[%clk 0:00:29.3]} 27. Bf4 {[%clk 0:01:31.3]} 27... c4 {[%clk 0:00:26.9]}
28. Kg2 {[%clk 0:01:26.1]} 28... Rfd8 {[%clk 0:00:25.4]} 29. Rxd8+ {[%clk
0:01:15.9]} 29... Rxd8 {[%clk 0:00:26.3]} 30. Rd1 {[%clk 0:01:15.5]} 30... Rxd1
{[%clk 0:00:24.3]} 31. Qxd1 {[%clk 0:01:16.4]} 31... Kg7 {[%clk 0:00:24.3]} 32.
b3 {[%clk 0:01:06.2]} 32... c3 {[%clk 0:00:22.9]} 33. Qd4 {[%clk 0:00:59.9]}
33... Nd2 {[%clk 0:00:14.5]} 34. Qxc3 {[%clk 0:00:55.3]} 34... Qd5+ {[%clk
0:00:14.4]} 35. Kh3 {[%clk 0:00:54.1]} 35... Ne4 {[%clk 0:00:14.5]} 36. Qc7
{[%clk 0:00:50.4]} 36... Nf2# {[%clk 0:00:14.6]} 0-1

[Event "Early-Titled-Tuesday-Blitz-September-12-2023"]
[Site "Chess.com"]
[Date "2023.09.12"]
[Round "5"]
[White "skoularikii"]
[Black "gmcorrales"]
[Result "1-0"]
[WhiteElo "2535"]
[BlackElo "2815"]
[TimeControl "180+1"]
[EndTime "8:54:19 PDT"]
[Termination "skoularikii won by resignation"]

1. e4 {[%clk 0:02:58.4]} 1... d5 {[%clk 0:02:56.9]} 2. exd5 {[%clk 0:02:57]}
2... Qxd5 {[%clk 0:02:57.8]} 3. Nc3 {[%clk 0:02:56.9]} 3... Qa5 {[%clk
0:02:58.1]} 4. Bc4 {[%clk 0:02:56.5]} 4... Nf6 {[%clk 0:02:57.9]} 5. d3 {[%clk
0:02:56.3]} 5... c6 {[%clk 0:02:58.4]} 6. Bd2 {[%clk 0:02:56.4]} 6... Bg4 {[%clk
0:02:58.2]} 7. f3 {[%clk 0:02:56.3]} 7... Bf5 {[%clk 0:02:55.3]} 8. g4 {[%clk
0:02:55.6]} 8... Bg6 {[%clk 0:02:55.2]} 9. Qe2 {[%clk 0:02:55.6]} 9... Qc7
{[%clk 0:02:53]} 10. f4 {[%clk 0:02:55.5]} 10... h6 {[%clk 0:02:49.1]} 11. f5
{[%clk 0:02:53.6]} 11... Bh7 {[%clk 0:02:49.5]} 12. O-O-O {[%clk 0:02:49.6]}
12... Nbd7 {[%clk 0:02:49.6]} 13. h4 {[%clk 0:02:43.2]} 13... b5 {[%clk
0:02:41.6]} 14. Bb3 {[%clk 0:02:39.4]} 14... a5 {[%clk 0:02:40.9]} 15. g5 {[%clk
0:02:37.2]} 15... a4 {[%clk 0:02:36.2]} 16. Bxf7+ {[%clk 0:02:12.4]} 16... Kxf7
{[%clk 0:02:37.1]} 17. g6+ {[%clk 0:02:13.2]} 17... Ke8 {[%clk 0:02:36.9]} 18.
gxh7 {[%clk 0:02:11]} 18... b4 {[%clk 0:02:36.6]} 19. Ne4 {[%clk 0:02:08.4]}
19... b3 {[%clk 0:02:37]} 20. a3 {[%clk 0:01:52.2]} 20... bxc2 {[%clk
0:02:36.6]} 21. Re1 {[%clk 0:01:49.4]} 21... Nxe4 {[%clk 0:02:19.2]} 22. Qxe4
{[%clk 0:01:41.2]} 22... Nf6 {[%clk 0:02:18.3]} 23. Qe6 {[%clk 0:01:41.3]} 23...
Qd7 {[%clk 0:02:16.8]} 24. Nf3 {[%clk 0:01:37]} 24... Qxe6 {[%clk 0:02:16.4]}
25. Rxe6 {[%clk 0:01:31]} 25... Nd7 {[%clk 0:01:48.2]} 26. h5 {[%clk 0:01:23.5]}
26... Nc5 {[%clk 0:01:47.1]} 27. Rxc6 {[%clk 0:01:19.2]} 27... Nxd3+ {[%clk
0:01:43.7]} 28. Kxc2 {[%clk 0:01:18.6]} 28... Nf2 {[%clk 0:01:44.6]} 29. Re1
{[%clk 0:01:13.6]} 29... Ng4 {[%clk 0:01:43.9]} 30. Nh4 {[%clk 0:01:02.7]} 30...
Rxh7 {[%clk 0:01:42.1]} 31. Ng6 {[%clk 0:01:02.4]} 31... Nf6 {[%clk 0:01:41.7]}
32. Bb4 {[%clk 0:00:54.2]} 32... Kf7 {[%clk 0:01:35.5]} 33. Bxe7 {[%clk
0:00:48.6]} 33... Bxe7 {[%clk 0:01:26.7]} 34. Rxe7+ {[%clk 0:00:49.5]} 34... Kg8
{[%clk 0:01:27.2]} 35. Rec7 {[%clk 0:00:46.8]} 35... Re8 {[%clk 0:01:03.7]} 36.
Rc8 {[%clk 0:00:45.7]} 36... Kf7 {[%clk 0:00:51]} 37. R6c7+ {[%clk 0:00:44.9]}
37... Kg8 {[%clk 0:00:51]} 38. Rxe8+ {[%clk 0:00:41.8]} 38... Nxe8 {[%clk
0:00:50.6]} 39. Ra7 {[%clk 0:00:39.2]} 39... Rh8 {[%clk 0:00:42.3]} 40. Nxh8
{[%clk 0:00:38.7]} 40... Nd6 {[%clk 0:00:42.3]} 41. Ra8+ {[%clk 0:00:37]} 41...
Kh7 {[%clk 0:00:41.4]} 42. Ng6 {[%clk 0:00:37.2]} 42... Nf7 {[%clk 0:00:41.4]}
43. Kc3 {[%clk 0:00:34.9]} 43... Nd8 {[%clk 0:00:41.7]} 44. Nf8+ {[%clk
0:00:33.4]} 44... Kg8 {[%clk 0:00:41.4]} 45. Rxd8 {[%clk 0:00:31.1]} 45... Kf7
{[%clk 0:00:42.3]} 46. Ng6 {[%clk 0:00:31]} 1-0

[Event "Early-Titled-Tuesday-Blitz-September-12-2023"]
[Site "Chess.com"]
[Date "2023.09.12"]
[Round "5"]
[White "lolo9292"]
[Black "VSanduleac"]
[Result "0-1"]
[WhiteElo "2201"]
[BlackElo "2535"]
[TimeControl "180+1"]
[EndTime "8:54:19 PDT"]
[Termination "VSanduleac won by resignation"]

1. d4 {[%clk 0:03:00.9]} 1... d6 {[%clk 0:02:59]} 2. Nc3 {[%clk 0:02:59.9]} 2...
g6 {[%clk 0:02:58.5]} 3. e4 {[%clk 0:02:59.6]} 3... Bg7 {[%clk 0:02:59.4]} 4. f4
{[%clk 0:02:56.9]} 4... a6 {[%clk 0:02:59.5]} 5. Nf3 {[%clk 0:02:56.9]} 5... b5
{[%clk 0:02:58.6]} 6. e5 {[%clk 0:02:54.4]} 6... Bb7 {[%clk 0:02:57.2]} 7. Be2
{[%clk 0:02:52.1]} 7... Nh6 {[%clk 0:02:55.1]} 8. Qd3 {[%clk 0:02:41.9]} 8...
O-O {[%clk 0:02:53.9]} 9. Ne4 {[%clk 0:02:39.7]} 9... Nd7 {[%clk 0:02:51.3]} 10.
b4 {[%clk 0:02:38.2]} 10... Nb6 {[%clk 0:02:47.3]} 11. O-O {[%clk 0:02:31.5]}
11... Nc4 {[%clk 0:02:44.6]} 12. a4 {[%clk 0:02:28.7]} 12... Rc8 {[%clk
0:02:35.8]} 13. axb5 {[%clk 0:02:26.6]} 13... axb5 {[%clk 0:02:34.9]} 14. Nfd2
{[%clk 0:02:21.1]} 14... dxe5 {[%clk 0:02:28.5]} 15. fxe5 {[%clk 0:02:19.1]}
15... Nf5 {[%clk 0:02:24.6]} 16. c3 {[%clk 0:02:13.4]} 16... Bd5 {[%clk
0:02:02.6]} 17. Nxc4 {[%clk 0:02:09.8]} 17... Bxc4 {[%clk 0:02:02.3]} 18. Qf3
{[%clk 0:02:09.6]} 18... Qd5 {[%clk 0:01:43.8]} 19. Bg5 {[%clk 0:02:00.8]} 19...
f6 {[%clk 0:01:41.2]} 20. Bxc4 {[%clk 0:01:53.1]} 20... Qxc4 {[%clk 0:01:36.8]}
21. exf6 {[%clk 0:01:53.1]} 21... exf6 {[%clk 0:01:36]} 22. Bf4 {[%clk
0:01:49.9]} 22... Ne7 {[%clk 0:01:22.4]} 23. Nc5 {[%clk 0:01:49.1]} 23... Nd5
{[%clk 0:01:21.4]} 24. Bd2 {[%clk 0:01:43.6]} 24... Rce8 {[%clk 0:01:18.4]} 25.
Rfe1 {[%clk 0:01:43.2]} 25... f5 {[%clk 0:01:17.8]} 26. Ne6 {[%clk 0:01:41.3]}
26... Rf7 {[%clk 0:01:07.2]} 27. Nxg7 {[%clk 0:01:41.4]} 27... Rxe1+ {[%clk
0:01:06.7]} 28. Rxe1 {[%clk 0:01:42.3]} 28... Kxg7 {[%clk 0:01:06.7]} 29. Re5
{[%clk 0:01:39.7]} 29... c6 {[%clk 0:01:05.3]} 30. Qe2 {[%clk 0:01:31.6]} 30...
Qxe2 {[%clk 0:01:03.8]} 31. Rxe2 {[%clk 0:01:32.5]} 31... Re7 {[%clk 0:01:02.2]}
32. Kf2 {[%clk 0:01:32]} 32... Rxe2+ {[%clk 0:01:01.4]} 33. Kxe2 {[%clk
0:01:32.9]} 33... Kf6 {[%clk 0:01:00.8]} 34. Kd3 {[%clk 0:01:33.6]} 34... f4
{[%clk 0:01:00.8]} 35. c4 {[%clk 0:01:33.8]} 35... bxc4+ {[%clk 0:00:55.9]} 36.
Kxc4 {[%clk 0:01:34.7]} 36... Ke6 {[%clk 0:00:53.6]} 37. Kd3 {[%clk 0:01:30.3]}
37... Kf5 {[%clk 0:00:52.8]} 38. h3 {[%clk 0:01:28.3]} 38... g5 {[%clk
0:00:52.3]} 39. Be1 {[%clk 0:00:43.5]} 39... h5 {[%clk 0:00:49.8]} 40. Bd2
{[%clk 0:00:43.5]} 40... g4 {[%clk 0:00:48]} 41. hxg4+ {[%clk 0:00:44.4]} 41...
hxg4 {[%clk 0:00:47.5]} 42. Be1 {[%clk 0:00:45]} 42... g3 {[%clk 0:00:47.3]} 43.
Bd2 {[%clk 0:00:37.6]} 43... f3 {[%clk 0:00:46.2]} 44. gxf3 {[%clk 0:00:30.8]}
44... g2 {[%clk 0:00:45.6]} 0-1

[Event "Early-Titled-Tuesday-Blitz-September-12-2023"]
[Site "Chess.com"]
[Date "2023.09.12"]
[Round "5"]
[White "MdImranCM"]
[Black "DonJuanEGenaro"]
[Result "1-0"]
[WhiteElo "2490"]
[BlackElo "1966"]
[TimeControl "180+1"]
[EndTime "8:54:20 PDT"]
[Termination "MdImranCM won by resignation"]

1. d4 {[%clk 0:02:43.8]} 1... Nf6 {[%clk 0:02:51.6]} 2. c4 {[%clk 0:02:34.5]}
2... c5 {[%clk 0:02:51.1]} 3. d5 {[%clk 0:02:34.5]} 3... e6 {[%clk 0:02:51]} 4.
Nc3 {[%clk 0:02:34.7]} 4... exd5 {[%clk 0:02:51]} 5. cxd5 {[%clk 0:02:35.6]}
5... d6 {[%clk 0:02:51]} 6. e4 {[%clk 0:02:35.8]} 6... g6 {[%clk 0:02:50.9]} 7.
Bd3 {[%clk 0:02:35.1]} 7... Bg7 {[%clk 0:02:50.6]} 8. Nge2 {[%clk 0:02:35.9]}
8... O-O {[%clk 0:02:50.2]} 9. O-O {[%clk 0:02:36.4]} 9... Re8 {[%clk 0:02:50]}
10. h3 {[%clk 0:02:35.5]} 10... Na6 {[%clk 0:02:45.9]} 11. a3 {[%clk 0:02:32]}
11... Nc7 {[%clk 0:02:45.3]} 12. a4 {[%clk 0:02:29.2]} 12... b6 {[%clk
0:02:40.1]} 13. Bg5 {[%clk 0:02:27.1]} 13... h6 {[%clk 0:02:38.1]} 14. Bh4
{[%clk 0:02:27.1]} 14... a6 {[%clk 0:02:28.9]} 15. f4 {[%clk 0:02:23]} 15... Rb8
{[%clk 0:02:20.2]} 16. Ng3 {[%clk 0:02:00.3]} 16... b5 {[%clk 0:02:09.1]} 17. e5
{[%clk 0:01:41]} 17... dxe5 {[%clk 0:01:50.4]} 18. fxe5 {[%clk 0:01:38.6]} 18...
Rxe5 {[%clk 0:01:47.3]} 19. Nce4 {[%clk 0:01:38.5]} 19... g5 {[%clk 0:01:30.7]}
20. Nxf6+ {[%clk 0:01:06.9]} 20... Bxf6 {[%clk 0:01:29.3]} 21. Nh5 {[%clk
0:01:07.1]} 21... Nxd5 {[%clk 0:01:27.3]} 22. Nxf6+ {[%clk 0:01:00.8]} 22...
Nxf6 {[%clk 0:01:20.6]} 23. Bh7+ {[%clk 0:00:59.3]} 23... Kxh7 {[%clk
0:01:20.4]} 24. Qxd8 {[%clk 0:01:00.2]} 24... Re8 {[%clk 0:00:26]} 25. Qxf6
{[%clk 0:00:54.5]} 25... Be6 {[%clk 0:00:25.7]} 26. Bg3 {[%clk 0:00:53.4]} 26...
Rbd8 {[%clk 0:00:25.5]} 27. Be5 {[%clk 0:00:47.2]} 27... Rg8 {[%clk 0:00:23.9]}
28. axb5 {[%clk 0:00:46.2]} 28... axb5 {[%clk 0:00:16.6]} 29. Ra7 {[%clk
0:00:47.1]} 29... Rdf8 {[%clk 0:00:12.3]} 30. Qxe6 {[%clk 0:00:45.5]} 1-0

[Event "Early-Titled-Tuesday-Blitz-September-12-2023"]
[Site "Chess.com"]
[Date "2023.09.12"]
[Round "5"]
[White "OK97"]
[Black "Hilary46"]
[Result "1-0"]
[WhiteElo "2825"]
[BlackElo "2574"]
[TimeControl "180+1"]
[EndTime "8:54:21 PDT"]
[Termination "OK97 won by resignation"]

1. d4 {[%clk 0:03:00.9]} 1... d5 {[%clk 0:02:58.8]} 2. Nf3 {[%clk 0:03:00.9]}
2... Nf6 {[%clk 0:02:58.2]} 3. e3 {[%clk 0:03:01.1]} 3... e6 {[%clk 0:02:57.8]}
4. b3 {[%clk 0:03:01.1]} 4... b6 {[%clk 0:02:54]} 5. Bb2 {[%clk 0:03:01.1]} 5...
Bb7 {[%clk 0:02:54.7]} 6. Bb5+ {[%clk 0:02:57.5]} 6... c6 {[%clk 0:02:50]} 7.
Bd3 {[%clk 0:02:57.5]} 7... Bd6 {[%clk 0:02:46.5]} 8. O-O {[%clk 0:02:56.3]}
8... O-O {[%clk 0:02:46.6]} 9. c4 {[%clk 0:02:54.3]} 9... c5 {[%clk 0:02:46.6]}
10. cxd5 {[%clk 0:02:49.7]} 10... exd5 {[%clk 0:02:45.8]} 11. Nbd2 {[%clk
0:02:40.9]} 11... Nc6 {[%clk 0:02:43.3]} 12. Rc1 {[%clk 0:02:38.9]} 12... Nb4
{[%clk 0:02:35.5]} 13. Bb1 {[%clk 0:02:28.2]} 13... Ba6 {[%clk 0:02:35.6]} 14.
Re1 {[%clk 0:02:20.1]} 14... Nd3 {[%clk 0:02:36]} 15. Bxd3 {[%clk 0:02:20.3]}
15... Bxd3 {[%clk 0:02:36.9]} 16. Ne5 {[%clk 0:02:19.4]} 16... Bxe5 {[%clk
0:02:34.7]} 17. dxe5 {[%clk 0:02:19]} 17... Ne4 {[%clk 0:02:35]} 18. f3 {[%clk
0:02:13.3]} 18... Nxd2 {[%clk 0:02:30.4]} 19. Qxd2 {[%clk 0:02:14.2]} 19... Ba6
{[%clk 0:02:30.9]} 20. Rcd1 {[%clk 0:02:06.2]} 20... Bb7 {[%clk 0:02:30.8]} 21.
Qf2 {[%clk 0:01:59.2]} 21... Qg5 {[%clk 0:02:27.2]} 22. h4 {[%clk 0:01:55.2]}
22... Qg6 {[%clk 0:02:27.2]} 23. Kh2 {[%clk 0:01:44.2]} 23... h6 {[%clk
0:02:27]} 24. g4 {[%clk 0:01:37.8]} 24... Rad8 {[%clk 0:02:23.7]} 25. h5 {[%clk
0:01:36.4]} 25... Qg5 {[%clk 0:02:17.1]} 26. Rg1 {[%clk 0:01:34.6]} 26... Qe7
{[%clk 0:01:51.4]} 27. f4 {[%clk 0:01:27.3]} 27... f6 {[%clk 0:01:10.3]} 28.
exf6 {[%clk 0:01:26]} 28... gxf6 {[%clk 0:01:11.2]} 29. Rde1 {[%clk 0:01:06.5]}
29... Qe4 {[%clk 0:01:09.6]} 30. Re2 {[%clk 0:00:47]} 30... Kh7 {[%clk
0:01:08.4]} 31. Qg3 {[%clk 0:00:31.6]} 31... Rde8 {[%clk 0:01:01.9]} 32. Rge1
{[%clk 0:00:28.4]} 32... d4 {[%clk 0:00:59.4]} 33. Kh3 {[%clk 0:00:20.8]} 33...
Rg8 {[%clk 0:00:46.5]} 34. exd4 {[%clk 0:00:17.8]} 34... Qxe2 {[%clk 0:00:46.4]}
35. Rxe2 {[%clk 0:00:18.7]} 35... Rxe2 {[%clk 0:00:46.8]} 36. Qd3+ {[%clk
0:00:19.3]} 36... Re4 {[%clk 0:00:45.8]} 37. dxc5 {[%clk 0:00:19.5]} 37... f5
{[%clk 0:00:41.7]} 38. Qd7+ {[%clk 0:00:18.3]} 1-0

[Event "Early-Titled-Tuesday-Blitz-September-12-2023"]
[Site "Chess.com"]
[Date "2023.09.12"]
[Round "5"]
[White "whiteglovethief"]
[Black "Leonid_Starozhilov"]
[Result "0-1"]
[WhiteElo "2542"]
[BlackElo "2790"]
[TimeControl "180+1"]
[EndTime "8:54:24 PDT"]
[Termination "Leonid_Starozhilov won by resignation"]

1. d4 {[%clk 0:03:00.9]} 1... Nf6 {[%clk 0:02:58.4]} 2. c4 {[%clk 0:03:01.3]}
2... g6 {[%clk 0:02:58.6]} 3. Nc3 {[%clk 0:03:00.8]} 3... Bg7 {[%clk 0:02:59.2]}
4. e4 {[%clk 0:03:00.3]} 4... d6 {[%clk 0:02:59.6]} 5. Nf3 {[%clk 0:03:00.8]}
5... Bg4 {[%clk 0:02:59.5]} 6. Be3 {[%clk 0:02:59]} 6... O-O {[%clk 0:02:58.1]}
7. Be2 {[%clk 0:02:58.9]} 7... a6 {[%clk 0:02:58.3]} 8. Qd2 {[%clk 0:02:56.7]}
8... Nc6 {[%clk 0:02:56.2]} 9. h4 {[%clk 0:02:54.8]} 9... Bxf3 {[%clk
0:02:50.3]} 10. gxf3 {[%clk 0:02:53.7]} 10... e5 {[%clk 0:02:50.6]} 11. d5
{[%clk 0:02:53.1]} 11... Nd4 {[%clk 0:02:51.1]} 12. O-O-O {[%clk 0:02:45.9]}
12... b5 {[%clk 0:02:48.5]} 13. h5 {[%clk 0:02:42.9]} 13... Nxh5 {[%clk
0:02:42.6]} 14. Rxh5 {[%clk 0:02:41.8]} 14... gxh5 {[%clk 0:02:42.8]} 15. Rg1
{[%clk 0:02:41]} 15... Kh8 {[%clk 0:02:25.2]} 16. cxb5 {[%clk 0:02:41]} 16...
axb5 {[%clk 0:02:25]} 17. Kb1 {[%clk 0:02:35.2]} 17... Qf6 {[%clk 0:02:16.6]}
18. Bg5 {[%clk 0:02:22.8]} 18... Nxf3 {[%clk 0:02:07.1]} 19. Bxf3 {[%clk
0:02:14.6]} 19... Qxf3 {[%clk 0:02:08]} 20. a3 {[%clk 0:01:49.9]} 20... b4
{[%clk 0:01:53.4]} 21. axb4 {[%clk 0:01:50.8]} 21... f5 {[%clk 0:01:33.3]} 22.
Qc2 {[%clk 0:01:08.2]} 22... f4 {[%clk 0:01:12.7]} 23. Nb5 {[%clk 0:01:02.3]}
23... Rf7 {[%clk 0:01:08.9]} 24. Re1 {[%clk 0:00:55.1]} 24... Qg4 {[%clk
0:01:02.2]} 25. Qc6 {[%clk 0:00:42.7]} 25... Rc8 {[%clk 0:00:35.7]} 26. Rc1
{[%clk 0:00:37.4]} 26... Qxg5 {[%clk 0:00:30.3]} 27. Nxd6 {[%clk 0:00:35.6]}
27... cxd6 {[%clk 0:00:29.6]} 28. Qxc8+ {[%clk 0:00:34.9]} 28... Rf8 {[%clk
0:00:30.1]} 29. Qd7 {[%clk 0:00:30.1]} 29... Qd8 {[%clk 0:00:18.6]} 30. Rc7
{[%clk 0:00:25.2]} 30... Qxd7 {[%clk 0:00:18.7]} 31. Rxd7 {[%clk 0:00:26.1]}
31... h4 {[%clk 0:00:18.8]} 0-1

[Event "Early-Titled-Tuesday-Blitz-September-12-2023"]
[Site "Chess.com"]
[Date "2023.09.12"]
[Round "5"]
[White "Egor_Koshulyan"]
[Black "maracayo"]
[Result "1/2-1/2"]
[WhiteElo "2736"]
[BlackElo "2457"]
[TimeControl "180+1"]
[EndTime "8:54:25 PDT"]
[Termination "Game drawn by repetition"]

1. e4 {[%clk 0:03:00.9]} 1... d6 {[%clk 0:02:59.9]} 2. d4 {[%clk 0:03:00.7]}
2... Nf6 {[%clk 0:02:59.7]} 3. Nc3 {[%clk 0:03:01.1]} 3... c6 {[%clk 0:02:59.7]}
4. a4 {[%clk 0:02:53.9]} 4... Qa5 {[%clk 0:02:58.8]} 5. Bd3 {[%clk 0:02:46.7]}
5... e5 {[%clk 0:02:57.7]} 6. Ne2 {[%clk 0:02:44]} 6... Be7 {[%clk 0:02:56.4]}
7. O-O {[%clk 0:02:42.5]} 7... O-O {[%clk 0:02:55.2]} 8. Kh1 {[%clk 0:02:23.9]}
8... Nbd7 {[%clk 0:02:40.3]} 9. f4 {[%clk 0:02:21.3]} 9... Re8 {[%clk
0:02:39.5]} 10. Be3 {[%clk 0:01:54.5]} 10... Bf8 {[%clk 0:02:30.4]} 11. fxe5
{[%clk 0:01:32.3]} 11... dxe5 {[%clk 0:02:29]} 12. d5 {[%clk 0:01:32.9]} 12...
Ng4 {[%clk 0:02:12.9]} 13. Bg1 {[%clk 0:01:29.9]} 13... Bc5 {[%clk 0:02:11.6]}
14. dxc6 {[%clk 0:01:24.2]} 14... bxc6 {[%clk 0:02:07]} 15. Bc4 {[%clk
0:01:21.5]} 15... Ndf6 {[%clk 0:02:02.2]} 16. Qd3 {[%clk 0:01:08.9]} 16... Bxg1
{[%clk 0:01:53.8]} 17. Nxg1 {[%clk 0:01:09.8]} 17... Qc5 {[%clk 0:01:38.2]} 18.
Nd1 {[%clk 0:00:52.3]} 18... Be6 {[%clk 0:00:46.1]} 19. Bxe6 {[%clk 0:00:46.1]}
19... Rxe6 {[%clk 0:00:43]} 20. h3 {[%clk 0:00:46.4]} 20... Rd6 {[%clk
0:00:18.6]} 21. Qf3 {[%clk 0:00:40.6]} 21... h5 {[%clk 0:00:17.9]} 22. hxg4
{[%clk 0:00:20.4]} 22... hxg4 {[%clk 0:00:18.8]} 23. Qc3 {[%clk 0:00:21.1]}
23... Nxe4 {[%clk 0:00:17.7]} 24. Qxc5 {[%clk 0:00:19.6]} 24... Ng3+ {[%clk
0:00:16.1]} 25. Kh2 {[%clk 0:00:20.1]} 25... Nxf1+ {[%clk 0:00:16.4]} 26. Kh1
{[%clk 0:00:20.7]} 26... Ng3+ {[%clk 0:00:17]} 27. Kh2 {[%clk 0:00:21.2]} 27...
Nf1+ {[%clk 0:00:17.2]} 28. Kh1 {[%clk 0:00:21.9]} 28... Ng3+ {[%clk 0:00:17.3]}
29. Kh2 {[%clk 0:00:22.3]} 29... Nf1+ {[%clk 0:00:16.7]} 1/2-1/2